fUSD/lending_fUSD_20260610
["ID","MTS","AMOUNT","RATE_DAILY","PERIOD"]
[424636698,1781025038000,-700.0,7.7e-05,2]
[424636703,1781025038000,-6916.938,7.768e-05,2]
[424636700,1781025038000,-310.0,7.726e-05,2]
[424636699,1781025038000,-250.0,7.705e-05,2]
[424636706,1781025038000,-233.13448933,7.768e-05,2]
[424636704,1781025038000,-32744.82778243,7.768e-05,2]
[424636702,1781025038000,-607.93,7.768e-05,2]
[424636705,1781025038000,-500.0,7.768e-05,2]
[424636708,1781025038000,-500.0,7.768e-05,2]
[424636717,1781025038000,-266.15621669,7.773e-05,2]
[424636707,1781025038000,-405.72523578,7.768e-05,2]
[424636709,1781025038000,-476.20688578,7.768e-05,2]
[424636711,1781025038000,-1047.80837622,7.768e-05,2]
[424636713,1781025038000,-24696.8764438,7.769e-05,2]
[424636712,1781025038000,-1343741.8075614,7.769e-05,2]
[424636710,1781025038000,-1047.80837624,7.768e-05,2]
[424636716,1781025038000,-2054.13138052,7.773e-05,2]
[424636715,1781025038000,-964.99571349,7.773e-05,2]
[424636714,1781025038000,-216.7152,7.77e-05,2]
[424636718,1781025038000,-2714.31966893,7.773e-05,2]
[424636719,1781025038000,-1100.0,7.8e-05,2]
[424636723,1781025038000,-989.890604,7.945e-05,2]
[424636720,1781025038000,-320.0,7.874e-05,2]
[424636769,1781025038000,-500.0,8.219e-05,2]
[424636817,1781025038000,-1280.0,9.023e-05,2]
[424636768,1781025038000,-500.0,8.219e-05,2]
[424636805,1781025038000,-151.0,8.485e-05,2]
[424636802,1781025038000,-151.0,8.485e-05,2]
[424636803,1781025038000,-151.0,8.485e-05,2]
[424636804,1781025038000,-151.0,8.485e-05,2]
[424636810,1781025038000,-152.0,8.601e-05,2]
[424636815,1781025038000,-320.0,8.748e-05,2]
[424636812,1781025038000,-164.81794585,8.601e-05,2]
[424636813,1781025038000,-175.46,8.676e-05,2]
[424636814,1781025038000,-170.48,8.69e-05,2]
[424636818,1781025038000,-500.0,9.041e-05,2]
[424636811,1781025038000,-152.0,8.601e-05,2]
[424636816,1781025038000,-500.0,8.767e-05,2]
[424636821,1781025038000,-170.48,9.353e-05,2]
[424636819,1781025038000,-2000.0,9.247e-05,2]
[424636820,1781025038000,-5433.0,9.324e-05,2]
[424636822,1781025038000,-166.0,9.5e-05,2]
[424636824,1781025038000,-163.0,9.5e-05,2]
[424636823,1781025038000,-163.0,9.5e-05,2]
[424636827,1781025038000,-320.0,9.623e-05,2]
[424636826,1781025038000,-305.34117327,9.604e-05,2]
[424636825,1781025038000,-152.0,9.517e-05,2]
[424636828,1781025038000,-305.34117327,9.626e-05,2]
[424636829,1781025038000,-305.34117328,9.634e-05,2]
[424636830,1781025038000,-305.34117327,9.648e-05,2]
[424636775,1781025038000,-567.1737718,8.219e-05,2]
[424636800,1781025038000,-151.0,8.485e-05,2]
[424636801,1781025038000,-151.0,8.485e-05,2]
[424636806,1781025038000,-151.0,8.485e-05,2]
[424636809,1781025038000,-500.0,8.493e-05,2]
[424636767,1781025038000,-500.0,8.219e-05,2]
[424636777,1781025038000,-250.0,8.219e-05,2]
[424636776,1781025038000,-500.0,8.219e-05,2]
[424636783,1781025038000,-250.0,8.331e-05,2]
[424636781,1781025038000,-2000.0,8.219e-05,2]
[424636785,1781025038000,-300.37659226,8.439e-05,2]
[424636778,1781025038000,-164.04,8.219e-05,2]
[424636780,1781025038000,-1894.76,8.219e-05,2]
[424636799,1781025038000,-151.0,8.485e-05,2]
[424636779,1781025038000,-500.0,8.219e-05,2]
[424636784,1781025038000,-210.0,8.439e-05,2]
[424636786,1781025038000,-250.0,8.439e-05,2]
[424636791,1781025038000,-500.0,8.44e-05,2]
[424636787,1781025038000,-4000.0,8.44e-05,2]
[424636782,1781025038000,-500.0,8.329e-05,2]
[424636807,1781025038000,-156.7527199,8.485e-05,2]
[424636788,1781025038000,-4000.0,8.44e-05,2]
[424636790,1781025038000,-1470.32582625,8.44e-05,2]
[424636792,1781025038000,-221.71042592,8.44e-05,2]
[424636794,1781025038000,-152.0,8.485e-05,2]
[424636793,1781025038000,-282.19036087,8.485e-05,2]
[424636796,1781025038000,-152.0,8.485e-05,2]
[424636795,1781025038000,-152.0,8.485e-05,2]
[424636798,1781025038000,-151.0,8.485e-05,2]
[424636808,1781025038000,-150.0,8.493e-05,2]
[424636797,1781025038000,-152.0,8.485e-05,2]
[424636789,1781025038000,-4000.0,8.44e-05,2]
[424636864,1781025039000,-201.0,9.989e-05,2]
[424636872,1781025039000,-2000.0,0.0001,2]
[424636863,1781025039000,-201.0,9.989e-05,2]
[424636881,1781025039000,-2000.0,0.00010274,2]
[424636861,1781025039000,-305.34117327,9.97e-05,2]
[424636862,1781025039000,-305.34117326,9.97e-05,2]
[424636869,1781025039000,-2000.0,0.0001,2]
[424636860,1781025039000,-305.34117328,9.97e-05,2]
[424636866,1781025039000,-1000.0,0.0001,2]
[424636868,1781025039000,-163.64,0.0001,2]
[424636870,1781025039000,-2000.0,0.0001,2]
[424636865,1781025039000,-99340.31609487,0.0001,2]
[424636874,1781025039000,-2000.0,0.0001,2]
[424636883,1781025039000,-10887.0,0.00010351,5]
[424636873,1781025039000,-2000.0,0.0001,2]
[424636875,1781025039000,-2906.67663443,0.0001,2]
[424636878,1781025039000,-3200.0,0.00010254,2]
[424636877,1781025039000,-2714.06,0.00010027,2]
[424636879,1781025039000,-3799.397165,0.00010266,2]
[424636876,1781025039000,-2906.67663443,0.0001,2]
[424636880,1781025039000,-164.04,0.00010274,2]
[424636882,1781025039000,-2714.06,0.00010278,2]
[424636884,1781025039000,-12790.0,0.00010351,5]
[424636885,1781025039000,-350.55583039,0.00010396,2]
[424636888,1781025039000,-943.8,0.00010475,2]
[424636867,1781025039000,-151.0,0.0001,2]
[424636871,1781025039000,-2000.0,0.0001,2]
[424636859,1781025039000,-305.34117327,9.957e-05,2]
[424636832,1781025039000,-305.34117327,9.689e-05,2]
[424636853,1781025039000,-305.34117327,9.897e-05,2]
[424636887,1781025039000,-499.99,0.00010475,2]
[424636834,1781025039000,-305.34117327,9.692e-05,2]
[424636833,1781025039000,-305.34117328,9.692e-05,2]
[424636831,1781025039000,-305.34117327,9.669e-05,2]
[424636835,1781025039000,-305.34117327,9.709e-05,2]
[424636836,1781025039000,-305.34117327,9.728e-05,2]
[424636837,1781025039000,-305.34117328,9.746e-05,2]
[424636842,1781025039000,-241.714533,9.8e-05,2]
[424636840,1781025039000,-305.34117327,9.783e-05,2]
[424636839,1781025039000,-305.34117327,9.765e-05,2]
[424636838,1781025039000,-305.34117327,9.747e-05,2]
[424636841,1781025039000,-305.34117328,9.796e-05,2]
[424636858,1781025039000,-305.34117327,9.942e-05,2]
[424636843,1781025039000,-305.34117327,9.8e-05,2]
[424636845,1781025039000,-305.34117327,9.834e-05,2]
[424636847,1781025039000,-305.34117328,9.843e-05,2]
[424636857,1781025039000,-305.34117328,9.93e-05,2]
[424636846,1781025039000,-1280.0,9.843e-05,2]
[424636850,1781025039000,-305.34117327,9.866e-05,2]
[424636848,1781025039000,-305.34117327,9.843e-05,2]
[424636849,1781025039000,-305.34117327,9.85e-05,2]
[424636851,1781025039000,-305.34117327,9.882e-05,2]
[424636856,1781025039000,-305.34117327,9.928e-05,2]
[424636852,1781025039000,-305.34117328,9.888e-05,2]
[424636854,1781025039000,-305.34117327,9.912e-05,2]
[424636855,1781025039000,-305.34117327,9.913e-05,2]
[424636844,1781025039000,-305.34117327,9.817e-05,2]
[424636886,1781025039000,-199.64334801,0.00010459,2]
[424636920,1781025039000,-500.0,0.00010958,2]
[424636890,1781025039000,-5256.1,0.00010475,2]
[424636917,1781025039000,-500.0,0.00010958,2]
[424636947,1781025039000,-19856.61342644,0.00011099,2]
[424636924,1781025039000,-500.0,0.00010958,2]
[424636923,1781025039000,-500.0,0.00010958,2]
[424636927,1781025039000,-200.0,0.00010959,2]
[424636926,1781025039000,-500.0,0.00010958,2]
[424636925,1781025039000,-500.0,0.00010958,2]
[424636922,1781025039000,-500.0,0.00010958,2]
[424636929,1781025039000,-200.0,0.00010959,2]
[424636931,1781025039000,-200.0,0.00010959,2]
[424636932,1781025039000,-166.66,0.00010959,2]
[424636934,1781025039000,-150.0,0.00010959,2]
[424636919,1781025039000,-500.0,0.00010958,2]
[424636935,1781025039000,-151.0,0.00010959,2]
[424636936,1781025039000,-151.0,0.00010959,2]
[424636940,1781025039000,-186.69,0.00010989,2]
[424636938,1781025039000,-150.0,0.00010959,2]
[424636937,1781025039000,-151.0,0.00010959,2]
[424636941,1781025039000,-2714.06,0.0001103,2]
[424636942,1781025039000,-166.66,0.00011068,2]
[424636939,1781025039000,-150.0,0.00010989,2]
[424636944,1781025039000,-151.0,0.00011096,2]
[424636948,1781025039000,-19856.61342644,0.00011099,2]
[424636945,1781025039000,-500.0,0.00011098,2]
[424636946,1781025039000,-19856.61342647,0.00011099,2]
[424636889,1781025039000,-9999.99,0.00010475,2]
[424636930,1781025039000,-200.0,0.00010959,2]
[424636921,1781025039000,-500.0,0.00010958,2]
[424636943,1781025039000,-216.7152,0.00011096,2]
[424636928,1781025039000,-200.0,0.00010959,2]
[424636918,1781025039000,-500.0,0.00010958,2]
[424636892,1781025039000,-9999.99,0.00010475,2]
[424636894,1781025039000,-10968.6,0.00010475,2]
[424636893,1781025039000,-4999.99,0.00010475,2]
[424636904,1781025039000,-300.0,0.000109,3]
[424636896,1781025039000,-299.99,0.00010475,2]
[424636901,1781025039000,-2714.06,0.00010529,2]
[424636903,1781025039000,-2714.06,0.00010779,2]
[424636900,1781025039000,-181.197747,0.00010525,2]
[424636895,1781025039000,-150.99,0.00010475,2]
[424636899,1781025039000,-320.0,0.00010498,2]
[424636898,1781025039000,-999.99,0.00010475,2]
[424636902,1781025039000,-500.0,0.0001074,2]
[424636891,1781025039000,-1972.1,0.00010475,2]
[424636905,1781025039000,-5883.1505258,0.000109,2]
[424636897,1781025039000,-6069.04,0.00010475,2]
[424636913,1781025039000,-500.0,0.00010958,2]
[424636912,1781025039000,-500.0,0.00010958,2]
[424636911,1781025039000,-500.0,0.00010958,2]
[424636914,1781025039000,-500.0,0.00010958,2]
[424636916,1781025039000,-500.0,0.00010958,2]
[424636908,1781025039000,-5883.15052574,0.000109,2]
[424636906,1781025039000,-5883.15052574,0.000109,2]
[424636910,1781025039000,-500.0,0.00010958,2]
[424636909,1781025039000,-500.0,0.00010958,2]
[424636907,1781025039000,-5883.15052574,0.000109,2]
[424636915,1781025039000,-500.0,0.00010958,2]
[424636989,1781025040000,-500.0,0.00011099,2]
[424636981,1781025040000,-500.0,0.00011099,2]
[424636986,1781025040000,-500.0,0.00011099,2]
[424636987,1781025040000,-500.0,0.00011099,2]
[424636985,1781025040000,-500.0,0.00011099,2]
[424636983,1781025040000,-500.0,0.00011099,2]
[424636980,1781025040000,-500.0,0.00011099,2]
[424636988,1781025040000,-500.0,0.00011099,2]
[424636977,1781025040000,-500.0,0.00011099,2]
[424636984,1781025040000,-500.0,0.00011099,2]
[424636982,1781025040000,-500.0,0.00011099,2]
[424636990,1781025040000,-500.0,0.00011099,2]
[424636998,1781025040000,-500.0,0.00011099,2]
[424636996,1781025040000,-500.0,0.00011099,2]
[424636999,1781025040000,-500.0,0.00011099,2]
[424636994,1781025040000,-500.0,0.00011099,2]
[424636997,1781025040000,-500.0,0.00011099,2]
[424636992,1781025040000,-500.0,0.00011099,2]
[424636995,1781025040000,-500.0,0.00011099,2]
[424636993,1781025040000,-500.0,0.00011099,2]
[424637000,1781025040000,-500.0,0.00011099,2]
[424636975,1781025040000,-500.0,0.00011099,2]
[424637002,1781025040000,-500.0,0.00011099,2]
[424636991,1781025040000,-500.0,0.00011099,2]
[424636976,1781025040000,-500.0,0.00011099,2]
[424636965,1781025040000,-154.0324442,0.00011099,2]
[424636969,1781025040000,-151.0,0.00011099,2]
[424637004,1781025040000,-500.0,0.00011099,2]
[424636949,1781025040000,-19856.61342644,0.00011099,2]
[424636953,1781025040000,-19856.61342644,0.00011099,2]
[424636950,1781025040000,-19856.61342644,0.00011099,2]
[424636952,1781025040000,-19856.61342644,0.00011099,2]
[424636951,1781025040000,-19856.61342644,0.00011099,2]
[424636954,1781025040000,-19856.61342644,0.00011099,2]
[424636959,1781025040000,-154.0324442,0.00011099,2]
[424636957,1781025040000,-154.03244426,0.00011099,2]
[424636961,1781025040000,-154.0324442,0.00011099,2]
[424636962,1781025040000,-154.0324442,0.00011099,2]
[424636963,1781025040000,-154.0324442,0.00011099,2]
[424636955,1781025040000,-19856.61342644,0.00011099,2]
[424636964,1781025040000,-154.0324442,0.00011099,2]
[424636966,1781025040000,-154.0324442,0.00011099,2]
[424636967,1781025040000,-151.0,0.00011099,2]
[424636968,1781025040000,-151.0,0.00011099,2]
[424636970,1781025040000,-151.0,0.00011099,2]
[424636978,1781025040000,-500.0,0.00011099,2]
[424636979,1781025040000,-500.0,0.00011099,2]
[424636971,1781025040000,-500.0,0.00011099,2]
[424636973,1781025040000,-500.0,0.00011099,2]
[424636972,1781025040000,-500.0,0.00011099,2]
[424636974,1781025040000,-500.0,0.00011099,2]
[424637005,1781025040000,-500.0,0.00011099,2]
[424637003,1781025040000,-500.0,0.00011099,2]
[424637001,1781025040000,-500.0,0.00011099,2]
[424637035,1781025040000,-500.0,0.00011099,2]
[424637043,1781025040000,-500.0,0.00011099,2]
[424637033,1781025040000,-500.0,0.00011099,2]
[424637038,1781025040000,-500.0,0.00011099,2]
[424637036,1781025040000,-500.0,0.00011099,2]
[424637037,1781025040000,-500.0,0.00011099,2]
[424637040,1781025040000,-500.0,0.00011099,2]
[424637041,1781025040000,-500.0,0.00011099,2]
[424637039,1781025040000,-500.0,0.00011099,2]
[424637045,1781025040000,-500.0,0.00011099,2]
[424637050,1781025040000,-151.0,0.00011099,2]
[424637048,1781025040000,-332.02896,0.00011099,2]
[424637046,1781025040000,-500.0,0.00011099,2]
[424637047,1781025040000,-500.0,0.00011099,2]
[424637052,1781025040000,-151.0,0.00011099,2]
[424637051,1781025040000,-151.0,0.00011099,2]
[424637053,1781025040000,-151.0,0.00011099,2]
[424637054,1781025040000,-151.0,0.00011099,2]
[424637056,1781025040000,-489.961075,0.00011099,2]
[424637059,1781025040000,-489.961075,0.00011099,2]
[424637058,1781025040000,-489.961075,0.00011099,2]
[424637057,1781025040000,-489.961075,0.00011099,2]
[424637060,1781025040000,-151.0,0.00011099,2]
[424637034,1781025040000,-500.0,0.00011099,2]
[424637032,1781025040000,-500.0,0.00011099,2]
[424637055,1781025040000,-151.0,0.00011099,2]
[424637029,1781025040000,-500.0,0.00011099,2]
[424637030,1781025040000,-500.0,0.00011099,2]
[424637007,1781025040000,-500.0,0.00011099,2]
[424637009,1781025040000,-500.0,0.00011099,2]
[424637010,1781025040000,-500.0,0.00011099,2]
[424637008,1781025040000,-500.0,0.00011099,2]
[424637006,1781025040000,-500.0,0.00011099,2]
[424637012,1781025040000,-500.0,0.00011099,2]
[424637011,1781025040000,-500.0,0.00011099,2]
[424637013,1781025040000,-500.0,0.00011099,2]
[424637015,1781025040000,-500.0,0.00011099,2]
[424637021,1781025040000,-500.0,0.00011099,2]
[424637020,1781025040000,-500.0,0.00011099,2]
[424637014,1781025040000,-500.0,0.00011099,2]
[424637023,1781025040000,-500.0,0.00011099,2]
[424637028,1781025040000,-500.0,0.00011099,2]
[424637019,1781025040000,-500.0,0.00011099,2]
[424637026,1781025040000,-500.0,0.00011099,2]
[424637025,1781025040000,-500.0,0.00011099,2]
[424637024,1781025040000,-500.0,0.00011099,2]
[424637031,1781025040000,-500.0,0.00011099,2]
[424637022,1781025040000,-500.0,0.00011099,2]
[424637016,1781025040000,-500.0,0.00011099,2]
[424637018,1781025040000,-500.0,0.00011099,2]
[424637017,1781025040000,-500.0,0.00011099,2]
[424637027,1781025040000,-500.0,0.00011099,2]
[424637095,1781025041000,-166.66,0.00011507,2]
[424637102,1781025041000,-1066.21,0.00012329,2]
[424637100,1781025041000,-169.71,0.00012084,2]
[424637094,1781025041000,-166.66,0.00011397,2]
[424637097,1781025041000,-5883.15052574,0.0001176,2]
[424637092,1781025041000,-166.66,0.00011288,2]
[424637091,1781025041000,-150.0,0.00011233,2]
[424637099,1781025041000,-169.71,0.00012084,2]
[424637098,1781025041000,-332.37637789,0.00012,2]
[424637107,1781025041000,-619.30839154,0.00012329,2]
[424637096,1781025041000,-1894.76,0.00011507,2]
[424637103,1781025041000,-164.04,0.00012329,2]
[424637117,1781025041000,-441.63701299,0.00013,5]
[424637108,1781025041000,-619.30839154,0.00012329,2]
[424637109,1781025041000,-619.30839154,0.00012329,2]
[424637101,1781025041000,-645.09473961,0.00012277,2]
[424637106,1781025041000,-619.30839154,0.00012329,2]
[424637104,1781025041000,-2000.0,0.00012329,2]
[424637112,1781025041000,-500.0,0.00012685,2]
[424637110,1781025041000,-309.00465403,0.00012472,2]
[424637114,1781025041000,-5883.15052574,0.00012807,2]
[424637113,1781025041000,-6987.0,0.00012756,2]
[424637119,1781025041000,-1555.5,0.00013473,2]
[424637115,1781025041000,-1500.0,0.00012925,2]
[424637090,1781025041000,-468.85,0.00011227,2]
[424637105,1781025041000,-619.30839154,0.00012329,2]
[424637093,1781025041000,-2000.0,0.00011301,2]
[424637064,1781025041000,-500.0,0.00011135,2]
[424637087,1781025041000,-1255.79,0.00011227,2]
[424637065,1781025041000,-500.0,0.00011135,2]
[424637118,1781025041000,-1068.11,0.00013473,2]
[424637066,1781025041000,-500.0,0.00011135,2]
[424637067,1781025041000,-622.1617826,0.00011135,2]
[424637061,1781025041000,-151.0,0.00011099,2]
[424637063,1781025041000,-2906.67663443,0.00011126,2]
[424637062,1781025041000,-274.62911,0.00011099,2]
[424637070,1781025041000,-151.0,0.00011136,2]
[424637068,1781025041000,-1343741.8075614,0.00011136,2]
[424637071,1781025041000,-151.0,0.00011136,2]
[424637069,1781025041000,-24696.8764438,0.00011136,2]
[424637077,1781025041000,-489.961075,0.00011136,2]
[424637089,1781025041000,-17881.4,0.00011227,2]
[424637078,1781025041000,-489.961075,0.00011136,2]
[424637079,1781025041000,-489.961075,0.00011136,2]
[424637073,1781025041000,-151.0,0.00011136,2]
[424637072,1781025041000,-170.931993,0.00011136,2]
[424637075,1781025041000,-151.0,0.00011136,2]
[424637081,1781025041000,-151.0,0.00011136,2]
[424637080,1781025041000,-489.961075,0.00011136,2]
[424637082,1781025041000,-151.0,0.00011136,2]
[424637083,1781025041000,-2561.0,0.00011154,2]
[424637084,1781025041000,-166.66,0.00011178,2]
[424637086,1781025041000,-20508.29,0.00011227,2]
[424637085,1781025041000,-500.0,0.00011205,2]
[424637088,1781025041000,-1864.76,0.00011227,2]
[424637076,1781025041000,-151.0,0.00011136,2]
[424637122,1781025041000,-156.0,0.000136,2]
[424637172,1781025041000,-500.0,0.00013698,2]
[424637116,1781025041000,-1030.0,0.00012925,2]
[424637150,1781025041000,-3751.0,0.00013698,2]
[424637148,1781025041000,-3751.0,0.00013698,2]
[424637151,1781025041000,-3751.0,0.00013698,2]
[424637153,1781025041000,-3751.0,0.00013698,2]
[424637152,1781025041000,-3751.0,0.00013698,2]
[424637155,1781025041000,-3751.0,0.00013698,2]
[424637156,1781025041000,-3751.0,0.00013698,2]
[424637154,1781025041000,-3751.0,0.00013698,2]
[424637157,1781025041000,-3751.0,0.00013698,2]
[424637158,1781025041000,-3751.0,0.00013698,2]
[424637163,1781025041000,-3751.0,0.00013698,2]
[424637162,1781025041000,-3751.0,0.00013698,2]
[424637169,1781025041000,-3751.0,0.00013698,2]
[424637168,1781025041000,-3751.0,0.00013698,2]
[424637167,1781025041000,-3751.0,0.00013698,2]
[424637166,1781025041000,-3751.0,0.00013698,2]
[424637165,1781025041000,-3751.0,0.00013698,2]
[424637164,1781025041000,-3751.0,0.00013698,2]
[424637170,1781025041000,-3751.0,0.00013698,2]
[424637171,1781025041000,-3751.03867159,0.00013698,2]
[424637174,1781025041000,-500.0,0.00013698,2]
[424637173,1781025041000,-500.0,0.00013698,2]
[424637176,1781025041000,-500.0,0.00013698,2]
[424637120,1781025041000,-500.0,0.00013589,2]
[424637175,1781025041000,-500.0,0.00013698,2]
[424637159,1781025041000,-3751.0,0.00013698,2]
[424637160,1781025041000,-3751.0,0.00013698,2]
[424637161,1781025041000,-3751.0,0.00013698,2]
[424637143,1781025041000,-500.0,0.00013698,2]
[424637111,1781025041000,-350.0,0.00012573,3]
[424637149,1781025041000,-3751.0,0.00013698,2]
[424637134,1781025041000,-500.0,0.00013698,2]
[424637124,1781025041000,-500.0,0.00013698,2]
[424637125,1781025041000,-500.0,0.00013698,2]
[424637126,1781025041000,-500.0,0.00013698,2]
[424637123,1781025041000,-216.7152,0.00013696,2]
[424637127,1781025041000,-500.0,0.00013698,2]
[424637130,1781025041000,-500.0,0.00013698,2]
[424637129,1781025041000,-500.0,0.00013698,2]
[424637128,1781025041000,-500.0,0.00013698,2]
[424637133,1781025041000,-500.0,0.00013698,2]
[424637132,1781025041000,-500.0,0.00013698,2]
[424637121,1781025041000,-10000.0,0.00013599,2]
[424637135,1781025041000,-500.0,0.00013698,2]
[424637131,1781025041000,-500.0,0.00013698,2]
[424637136,1781025041000,-500.0,0.00013698,2]
[424637140,1781025041000,-168.97999999,0.00013698,2]
[424637144,1781025041000,-500.0,0.00013698,2]
[424637139,1781025041000,-500.0,0.00013698,2]
[424637145,1781025041000,-500.0,0.00013698,2]
[424637146,1781025041000,-500.0,0.00013698,2]
[424637141,1781025041000,-500.0,0.00013698,2]
[424637142,1781025041000,-500.0,0.00013698,2]
[424637137,1781025041000,-500.0,0.00013698,2]
[424637147,1781025041000,-556.35574227,0.00013698,2]
[424637138,1781025041000,-500.0,0.00013698,2]
[424637210,1781025042000,-151.0,0.00013699,2]
[424637213,1781025042000,-574.61032294,0.00013699,2]
[424637209,1781025042000,-172.17979501,0.00013699,2]
[424637217,1781025042000,-151.0,0.00013699,2]
[424637202,1781025042000,-5257.394979,0.00013699,2]
[424637211,1781025042000,-151.0,0.00013699,2]
[424637214,1781025042000,-151.0,0.00013699,2]
[424637216,1781025042000,-151.0,0.00013699,2]
[424637215,1781025042000,-151.0,0.00013699,2]
[424637208,1781025042000,-151.0,0.00013699,2]
[424637212,1781025042000,-151.0,0.00013699,2]
[424637219,1781025042000,-151.0,0.00013699,2]
[424637224,1781025042000,-5257.394979,0.00013699,2]
[424637221,1781025042000,-151.0,0.00013699,2]
[424637231,1781025042000,-1984.85828981,0.00013699,2]
[424637228,1781025042000,-1984.85828981,0.00013699,2]
[424637225,1781025042000,-5257.394979,0.00013699,2]
[424637226,1781025042000,-5257.394979,0.00013699,2]
[424637220,1781025042000,-151.0,0.00013699,2]
[424637223,1781025042000,-5257.394979,0.00013699,2]
[424637227,1781025042000,-1984.85828981,0.00013699,2]
[424637229,1781025042000,-1984.85828981,0.00013699,2]
[424637222,1781025042000,-152.092267,0.00013699,2]
[424637230,1781025042000,-1984.85828981,0.00013699,2]
[424637203,1781025042000,-5257.394979,0.00013699,2]
[424637218,1781025042000,-151.0,0.00013699,2]
[424637204,1781025042000,-5257.394979,0.00013699,2]
[424637178,1781025042000,-500.0,0.00013698,2]
[424637199,1781025042000,-5257.394979,0.00013699,2]
[424637232,1781025042000,-1984.85828981,0.00013699,2]
[424637181,1781025042000,-604.26544434,0.00013698,2]
[424637180,1781025042000,-500.0,0.00013698,2]
[424637182,1781025042000,-500.0,0.00013698,2]
[424637179,1781025042000,-500.0,0.00013698,2]
[424637183,1781025042000,-500.0,0.00013698,2]
[424637177,1781025042000,-500.0,0.00013698,2]
[424637184,1781025042000,-500.0,0.00013698,2]
[424637185,1781025042000,-500.0,0.00013698,2]
[424637186,1781025042000,-500.0,0.00013698,2]
[424637187,1781025042000,-500.0,0.00013698,2]
[424637189,1781025042000,-151.0,0.00013699,2]
[424637201,1781025042000,-5257.394979,0.00013699,2]
[424637188,1781025042000,-500.0,0.00013699,2]
[424637190,1781025042000,-151.0,0.00013699,2]
[424637194,1781025042000,-5257.394979,0.00013699,2]
[424637193,1781025042000,-5257.394979,0.00013699,2]
[424637192,1781025042000,-200.0,0.00013699,2]
[424637195,1781025042000,-5257.394979,0.00013699,2]
[424637197,1781025042000,-5257.394979,0.00013699,2]
[424637196,1781025042000,-5257.394979,0.00013699,2]
[424637205,1781025042000,-2025.15,0.00013699,2]
[424637206,1781025042000,-188.1,0.00013699,2]
[424637207,1781025042000,-202.98962328,0.00013699,10]
[424637198,1781025042000,-5257.394979,0.00013699,2]
[424637200,1781025042000,-5257.394979,0.00013699,2]
[424637191,1781025042000,-151.0,0.00013699,2]
[424637234,1781025042000,-1984.85828981,0.00013699,2]
[424637293,1781025042000,-1945.16112402,0.00013699,2]
[424637236,1781025042000,-1984.85828981,0.00013699,2]
[424637284,1781025042000,-1945.16112402,0.00013699,2]
[424637281,1781025042000,-1945.16112402,0.00013699,2]
[424637270,1781025042000,-1984.85828981,0.00013699,2]
[424637282,1781025042000,-1945.16112402,0.00013699,2]
[424637283,1781025042000,-1945.16112402,0.00013699,2]
[424637275,1781025042000,-489.961075,0.00013699,2]
[424637272,1781025042000,-1984.85828981,0.00013699,2]
[424637273,1781025042000,-1984.85828981,0.00013699,2]
[424637274,1781025042000,-1984.85828981,0.00013699,2]
[424637277,1781025042000,-489.961075,0.00013699,2]
[424637279,1781025042000,-489.961075,0.00013699,2]
[424637285,1781025042000,-1945.16112402,0.00013699,2]
[424637290,1781025042000,-1945.16112402,0.00013699,2]
[424637288,1781025042000,-1945.16112402,0.00013699,2]
[424637287,1781025042000,-1945.16112402,0.00013699,2]
[424637286,1781025042000,-1945.16112402,0.00013699,2]
[424637294,1781025042000,-1945.16112402,0.00013699,2]
[424637291,1781025042000,-1945.16112402,0.00013699,2]
[424637289,1781025042000,-1945.16112402,0.00013699,2]
[424637295,1781025042000,-1945.16112402,0.00013699,2]
[424637292,1781025042000,-1945.16112402,0.00013699,2]